fUST/lending_fUST_20250115
["ID","MTS","AMOUNT","RATE_DAILY","PERIOD"]
[348907108,1736870835125,-415.34009205,0.00016971,2]
[348907109,1736870839116,-286.08672395,0.00016971,2]
[348907110,1736870839140,-155.13878809,0.00016971,2]
[348907111,1736870839164,-1804.40101583,0.00017576,2]
[348907112,1736870839188,-1602.17340546,0.00017754,2]
[348907114,1736870852150,-867.82659454,0.00017754,2]
[348907115,1736870852173,-300.0,0.00017929,2]
[348907116,1736870852195,-61155.55966955,0.00017929,2]
[348907118,1736870948097,-3602.8004343,0.00016979,2]
[348907119,1736870948122,-875.1784775,0.0001783,2]
[348907120,1736870948145,-300.0,0.00017926,2]
[348907121,1736870948167,-342366.0,0.00017926,2]
[348907122,1736870948191,-215.25231667,0.00017927,2]
[348907123,1736870948214,-178.98837253,0.00017927,2]
[348907124,1736870948235,-494.59591812,0.00017927,2]
[348907125,1736870948258,-500.0,0.00017927,2]
[348907126,1736870948279,-500.0,0.00017927,2]
[348907127,1736870948301,-500.0,0.00017927,2]
[348907128,1736870948323,-500.0,0.00017927,2]
[348907129,1736870948349,-500.0,0.00017927,2]
[348907130,1736870948404,-500.0,0.00017927,2]
[348907131,1736870948436,-500.0,0.00017927,2]
[348907132,1736870948459,-500.0,0.00017927,2]
[348907133,1736870948483,-500.0,0.00017927,2]
[348907134,1736870948506,-500.0,0.00017927,2]
[348907135,1736870948528,-500.0,0.00017927,2]
[348907136,1736870948553,-500.0,0.00017927,2]
[348907137,1736870948577,-500.0,0.00017927,2]
[348907138,1736870948598,-500.0,0.00017927,2]
[348907139,1736870948621,-500.0,0.00017927,2]
[348907140,1736870948654,-500.0,0.00017927,2]
[348907141,1736870948696,-373.23366325,0.00017927,2]
[348907142,1736870948735,-500.0,0.00017927,2]
[348907143,1736870948758,-500.0,0.00017927,2]
[348907144,1736870948781,-500.0,0.00017927,2]
[348907145,1736870948802,-500.0,0.00017927,2]
[348907146,1736870948825,-500.0,0.00017927,2]
[348907147,1736870948847,-500.0,0.00017927,2]
[348907148,1736870948871,-500.0,0.00017927,2]
[348907149,1736870948896,-500.0,0.00017927,2]
[348907150,1736870948919,-500.0,0.00017927,2]
[348907151,1736870948940,-500.0,0.00017927,2]
[348907152,1736870948964,-488.3721703,0.00017927,2]
[348907153,1736870948990,-500.0,0.00017927,2]
[348907154,1736870949018,-500.0,0.00017927,2]
[348907155,1736870949042,-500.0,0.00017927,2]
[348907156,1736870949068,-500.0,0.00017927,2]
[348907157,1736870949096,-500.0,0.00017927,2]
[348907158,1736870949121,-500.0,0.00017927,2]
[348907159,1736870949152,-500.0,0.00017927,2]
[348907160,1736870949179,-500.0,0.00017927,2]
[348907161,1736870949203,-500.0,0.00017927,2]
[348907162,1736870949227,-500.0,0.00017927,2]
[348907163,1736870949249,-500.0,0.00017927,2]
[348907164,1736870949272,-500.0,0.00017927,2]
[348907165,1736870949294,-500.0,0.00017927,2]
[348907166,1736870949316,-500.0,0.00017927,2]
[348907167,1736870949339,-500.0,0.00017927,2]
[348907168,1736870949361,-500.0,0.00017927,2]
[348907169,1736870949384,-500.0,0.00017927,2]
[348907170,1736870949407,-500.0,0.00017927,2]
[348907171,1736870949430,-500.0,0.00017927,2]
[348907172,1736870949453,-500.0,0.00017927,2]
[348907173,1736870949481,-500.0,0.00017927,2]
[348907174,1736870949505,-500.0,0.00017927,2]
[348907175,1736870949531,-500.0,0.00017927,2]
[348907176,1736870949554,-500.0,0.00017927,2]
[348907177,1736870949578,-500.0,0.00017927,2]
[348907178,1736870949601,-500.0,0.00017927,2]
[348907179,1736870949624,-259.16304733,0.00017927,2]
[348907273,1736871036097,-300.0,0.00017926,2]
[348907274,1736871036107,-499.0,0.00017933,2]
[348907275,1736871036117,-3127.29296144,0.00017935,2]
[348907276,1736871036129,-711.98758765,0.00017935,2]
[348907277,1736871036140,-336.40984175,0.00017935,2]
[348907278,1736871036152,-20724.30960916,0.00017935,2]
[348907279,1736871036161,-500.0,0.00017973,2]
[348907280,1736871036171,-536.73479423,0.00017973,2]
[348907281,1736871036181,-500.0,0.00017973,2]
[348907282,1736871036194,-500.0,0.00017973,2]
[348907283,1736871036205,-152.0,0.00018404,2]
[348907284,1736871036215,-790.343858,0.00018498,2]
[348907285,1736871036224,-1000.0,0.00018521,2]
[348907286,1736871036234,-519.06102371,0.00018521,2]
[348907287,1736871036243,-192.0,0.00018819,2]
[348907288,1736871036253,-879.0174282,0.00018882,2]
[348907289,1736871036262,-1107.66573272,0.000189,2]
[348907290,1736871036272,-294.79,0.00018928,2]
[348907291,1736871036282,-500.0,0.00018939,2]
[348907292,1736871036292,-500.0,0.00018939,2]
[348907293,1736871036302,-500.0,0.00018939,2]
[348907294,1736871036314,-500.0,0.00018939,2]
[348907295,1736871036323,-404.08593878,0.00018939,2]
[348907296,1736871036333,-150.0,0.0001913,2]
[348907297,1736871036342,-506.13151607,0.00019522,2]
[348907298,1736871036351,-420.0,0.00019561,2]
[348907299,1736871036361,-1101.674535,0.0001972,2]
[348907300,1736871036371,-250.0,0.00019831,2]
[348907301,1736871036381,-7163.5490875,0.00019937,2]
[348907302,1736871036390,-2308.72630763,0.0002,2]
[348907303,1736871036403,-546.27369237,0.0002,2]
[348907304,1736871036415,-282.21872615,0.0002,2]
[348907305,1736871036425,-500.0,0.00020164,2]
[348907306,1736871036434,-160.892384,0.00020447,2]
[348907307,1736871036446,-169.07196,0.00020521,2]
[348907308,1736871036456,-174.812539,0.00020562,2]
[348907309,1736871036465,-169.07196,0.00020808,2]
[348907310,1736871036475,-169.07196,0.00021096,2]
[348907311,1736871036484,-587.0,0.00021345,2]
[348907312,1736871036494,-500.0,0.00021599,2]
[348907313,1736871036504,-500.0,0.00021599,2]
[348907314,1736871036513,-500.0,0.00021599,2]
[348907315,1736871036523,-152.58151814,0.00021599,2]
[348907316,1736871036534,-500.0,0.00021599,2]
[348907317,1736871036544,-500.0,0.00021599,2]
[348907318,1736871036554,-500.0,0.00021599,2]
[348907319,1736871036564,-500.0,0.00021599,2]
[348907320,1736871036574,-500.0,0.00021599,2]
[348907321,1736871036584,-500.0,0.00021599,2]
[348907322,1736871036593,-500.0,0.00021599,2]
[348907323,1736871036603,-500.0,0.00021599,2]
[348907324,1736871036612,-500.0,0.00021599,2]
[348907325,1736871036622,-500.0,0.00021599,2]
[348907326,1736871036631,-500.0,0.00021599,2]
[348907327,1736871036641,-500.0,0.00021599,2]
[348907328,1736871036651,-500.0,0.00021599,2]
[348907329,1736871036660,-89.00525897,0.00021599,2]
[348907330,1736871036677,-410.99474103,0.00021599,2]
[348907331,1736871036686,-248.00867097,0.00021599,2]
[348907332,1736871036701,-23.15531387,0.00021599,2]
[348907333,1736871036711,-500.0,0.00021599,2]
[348907334,1736871036721,-500.0,0.00021599,2]
[348907335,1736871036732,-500.0,0.00021599,2]
[348907336,1736871036742,-500.0,0.00021599,2]
[348907337,1736871036752,-500.0,0.00021599,2]
[348907338,1736871036763,-500.0,0.00021599,2]
[348907339,1736871036773,-500.0,0.00021599,2]
[348907340,1736871036784,-500.0,0.00021599,2]
[348907341,1736871036793,-500.0,0.00021599,2]
[348907342,1736871036803,-500.0,0.00021599,2]
[348907343,1736871036812,-500.0,0.00021599,2]
[348907344,1736871036822,-500.0,0.00021599,2]
[348907345,1736871036833,-500.0,0.00021599,2]
[348907346,1736871036990,-327.21331203,0.00021599,2]
[348907347,1736871037000,-197.17796538,0.00021599,2]
[348907348,1736871037010,-500.0,0.00021599,2]
[348907349,1736871037020,-500.0,0.00021599,2]
[348907350,1736871037030,-500.0,0.00021599,2]
[348907351,1736871037040,-551.93393558,0.00021599,2]
[348907352,1736871037050,-500.0,0.00021599,2]
[348907353,1736871037060,-500.0,0.00021599,2]
[348907354,1736871037069,-500.0,0.00021599,2]
[348907355,1736871037079,-500.0,0.00021599,2]
[348907356,1736871037089,-500.0,0.00021599,2]
[348907357,1736871037098,-500.0,0.00021599,2]
[348907358,1736871037108,-500.0,0.00021599,2]
[348907359,1736871037118,-500.0,0.00021599,2]
[348907360,1736871037128,-500.0,0.00021599,2]
[348907361,1736871037138,-500.0,0.00021599,2]
[348907362,1736871037148,-500.0,0.00021599,2]
[348907363,1736871037157,-500.0,0.00021599,2]
[348907364,1736871037167,-500.0,0.00021599,2]
[348907365,1736871037176,-500.0,0.00021599,2]
[348907366,1736871037186,-500.0,0.00021599,2]
[348907367,1736871037197,-500.0,0.00021599,2]
[348907368,1736871037208,-276.9369206,0.00021599,2]
[348907403,1736871038159,-223.0630794,0.00021599,2]
[348907404,1736871038169,-500.0,0.00021599,2]
[348907405,1736871038179,-500.0,0.00021599,2]
[348907406,1736871038190,-500.0,0.00021599,2]
[348907407,1736871038200,-500.0,0.00021599,2]
[348907408,1736871038210,-500.0,0.00021599,2]
[348907409,1736871038220,-500.0,0.00021599,2]
[348907410,1736871038230,-500.0,0.00021599,2]
[348907411,1736871038240,-16.9369206,0.00021599,2]
[348907412,1736871038252,-483.0630794,0.00021599,2]
[348907413,1736871038262,-500.0,0.00021599,2]
[348907414,1736871038272,-500.0,0.00021599,2]
[348907415,1736871038282,-500.0,0.00021599,2]
[348907416,1736871038292,-500.0,0.00021599,2]
[348907417,1736871038301,-500.0,0.00021599,2]
[348907418,1736871038311,-500.0,0.00021599,2]
[348907419,1736871038321,-500.0,0.00021599,2]
[348907420,1736871038330,-500.0,0.00021599,2]
[348907421,1736871038340,-2855.0,0.000216,4]
[348907423,1736871038350,-181.842,0.000219,2]
[348907424,1736871038359,-192.475,0.000219,2]
[348907426,1736871038369,-500.0,0.00021906,7]
[348907428,1736871038379,-395.0,0.0002191,2]
[348907430,1736871038389,-346.21714268,0.00021916,2]
[348907432,1736871038398,-500.0,0.00021917,2]
[348907434,1736871038408,-506.65643351,0.00021917,3]
[348907436,1736871038417,-500.0,0.00021917,3]
[348907438,1736871038427,-552.46283825,0.00021917,3]
[348907440,1736871038437,-500.0,0.00021917,3]
[348907442,1736871038447,-501.07216132,0.00021917,3]
[348907443,1736871038457,-500.0,0.00021917,3]
[348907445,1736871038466,-500.0,0.00021917,3]
[348907447,1736871038476,-213.65157777,0.00021917,3]
[348907449,1736871038486,-172.48930506,0.00021917,3]
[348907451,1736871038496,-500.0,0.00021917,3]
[348907453,1736871038506,-500.0,0.00021917,3]
[348907455,1736871038515,-500.0,0.00021917,3]
[348907458,1736871038524,-500.0,0.00021917,3]
[348907461,1736871038534,-500.0,0.00021917,3]
[348907464,1736871038544,-481.89461693,0.00021917,3]
[348907467,1736871038554,-500.0,0.00021917,3]
[348907470,1736871038563,-500.0,0.00021917,3]
[348907473,1736871038573,-530.0329691,0.00021917,3]
[348907476,1736871038583,-500.0,0.00021917,3]
[348907479,1736871038593,-500.0,0.00021917,3]
[348907482,1736871038603,-406.510311,0.00021917,3]
[348907486,1736871038616,-93.489689,0.00021917,3]
[348907489,1736871038625,-500.0,0.00021917,3]
[348907493,1736871038635,-500.0,0.00021917,3]
[348907496,1736871038644,-582.25410084,0.00021917,3]
[348907499,1736871038654,-500.0,0.00021917,3]
[348907502,1736871038664,-500.0,0.00021917,3]
[348907505,1736871038674,-500.0,0.00021917,3]
[348907508,1736871038683,-500.0,0.00021917,3]
[348907511,1736871038694,-500.0,0.00021917,3]
[348907514,1736871038704,-500.0,0.00021917,3]
[348907517,1736871038714,-500.0,0.00021917,3]
[348907520,1736871038723,-500.0,0.00021917,3]
[348907523,1736871038732,-500.0,0.00021917,3]
[348907526,1736871038742,-500.0,0.00021917,3]
[348907527,1736871038751,-500.0,0.00021917,3]
[348907530,1736871038761,-500.0,0.00021917,3]
[348907533,1736871038770,-500.0,0.00021917,3]
[348907537,1736871038780,-473.64624902,0.00021917,3]
[348907540,1736871038790,-560.85530698,0.00021917,3]
[348907542,1736871038799,-500.0,0.00021917,3]
[348907544,1736871038808,-500.0,0.00021917,3]
[348907545,1736871038817,-500.0,0.00021917,3]
[348907548,1736871038827,-500.0,0.00021917,3]
[348907550,1736871038836,-500.0,0.00021917,3]
[348907552,1736871038845,-583.42945977,0.00021917,3]
[348907554,1736871038855,-500.0,0.00021917,3]
[348907555,1736871038864,-189.67080516,0.00021917,3]
[348907556,1736871038874,-500.0,0.00021917,3]
[348907557,1736871038883,-500.0,0.00021917,3]
[348907559,1736871038892,-500.0,0.00021917,3]
[348907561,1736871038902,-500.0,0.00021917,3]
[348907563,1736871038911,-374.04630345,0.00021917,3]
[348907565,1736871038924,-500.0,0.00021917,3]
[348907567,1736871038934,-500.0,0.00021917,3]
[348907569,1736871038949,-500.0,0.00021917,3]
[348907571,1736871038959,-500.0,0.00021917,3]
[348907573,1736871038969,-500.0,0.00021917,3]
[348907575,1736871038979,-500.0,0.00021917,3]
[348907577,1736871038988,-500.0,0.00021917,3]
[348907579,1736871038999,-500.0,0.00021917,3]
[348907581,1736871039008,-101.76141265,0.00021917,3]
[348907583,1736871039021,-398.23858735,0.00021917,3]
[348907585,1736871039031,-500.0,0.00021917,3]
[348907587,1736871039040,-500.0,0.00021917,3]
[348907589,1736871039050,-101.76141265,0.00021917,3]
[348907594,1736871039091,-2164.25858735,0.00021917,3]
[348907596,1736871039101,-500.0,0.00021917,3]
[348907598,1736871039110,-252.13710631,0.00021917,3]
[348907600,1736871039120,-500.0,0.00021917,3]
[348907602,1736871039129,-337.5605822,0.00021917,3]
[348907604,1736871039139,-500.0,0.00021917,3]
[348907607,1736871039148,-500.0,0.00021917,3]
[348907609,1736871039159,-500.0,0.00021917,3]
[348907610,1736871039168,-500.0,0.00021917,3]
[348907612,1736871039178,-500.0,0.00021917,3]
[348907613,1736871039193,-500.0,0.00021917,3]
[348907615,1736871039203,-170.86442015,0.00021917,3]
[348907617,1736871039216,-2484.40557985,0.00021917,3]
[348907619,1736871039226,-328.81316709,0.00021917,3]
[348907621,1736871039236,-500.0,0.00021917,3]
[348907623,1736871039246,-500.0,0.00021917,3]
[348907626,1736871039256,-500.0,0.00021917,3]
[348907629,1736871039277,-500.0,0.00021917,3]
[348907631,1736871039288,-500.0,0.00021917,3]
[348907633,1736871039300,-500.0,0.00021917,3]
[348907635,1736871039310,-500.0,0.00021917,3]
[348907637,1736871039320,-500.0,0.00021917,3]
[348907639,1736871039330,-500.0,0.00021917,3]
[348907641,1736871039340,-500.19920853,0.00021917,3]
[348907643,1736871039350,-500.0,0.00021917,3]
[348907646,1736871039360,-182.40436957,0.00021917,3]
[348907647,1736871039371,-500.0,0.00021917,3]
[348907649,1736871039381,-500.0,0.00021917,3]
[348907652,1736871039391,-500.0,0.00021917,3]
[348907654,1736871039401,-500.0,0.00021917,3]
[348907656,1736871039412,-500.0,0.00021917,3]
[348907658,1736871039422,-500.0,0.00021917,3]
[348907660,1736871039432,-494.36,0.00021917,3]
[348907662,1736871039445,-500.0,0.00021917,3]
[348907664,1736871039456,-500.0,0.00021917,3]
[348907666,1736871039467,-225.48182622,0.00021917,3]
[348907668,1736871039477,-1476.27,0.00021917,3]
[348907670,1736871039487,-37.34574036,0.00021917,3]
[348907673,1736871039503,-814.95425964,0.00021917,3]
[348907675,1736871039512,-269.13794113,0.00021917,3]
[348907677,1736871039523,-263.32377402,0.00021917,3]
[348907679,1736871039532,-500.0,0.00021917,3]
[348907681,1736871039542,-500.0,0.00021917,3]
[348907683,1736871039552,-488.7686183,0.00021917,2]
[348907685,1736871039565,-269.1813817,0.00021917,2]
[348907687,1736871039575,-500.0,0.00021917,3]
[348907689,1736871039585,-291.88618055,0.00021917,3]
[348907713,1736871040259,-208.11381945,0.00021917,3]
[348907714,1736871040268,-500.0,0.00021917,3]
[348907715,1736871040278,-292.70152672,0.00021917,3]
[348907716,1736871040291,-221.38568257,0.00021917,3]
[348907717,1736871040300,-500.0,0.00021917,3]
[348907718,1736871040309,-500.0,0.00021917,3]
[348907719,1736871040318,-591.26,0.00021917,3]
[348907720,1736871040327,-500.0,0.00021917,3]
[348907721,1736871040336,-500.0,0.00021917,3]
[348907722,1736871040346,-275.56515075,0.00021917,3]
[348907723,1736871040356,-607.67,0.00021917,3]
[348907724,1736871040365,-500.0,0.00021917,3]
[348907725,1736871040375,-511.62838714,0.00021917,3]
[348907726,1736871040384,-502.2,0.00021917,3]
[348907727,1736871040393,-500.0,0.00021917,3]
[348907728,1736871040403,-11264.12,0.00021917,3]
[348907729,1736871040413,-500.0,0.00021917,3]
[348907730,1736871040423,-6252.25,0.00021917,2]
[348907731,1736871040434,-500.0,0.00021917,3]
[348907732,1736871040446,-500.0,0.00021917,3]
[348907733,1736871040456,-500.0,0.00021917,3]
[348907734,1736871040466,-500.0,0.00021917,3]
[348907735,1736871040476,-757.72,0.00021917,3]
[348907736,1736871040486,-530.8,0.00021917,3]
[348907737,1736871040496,-500.0,0.00021917,3]
[348907738,1736871040506,-500.0,0.00021917,3]
[348907739,1736871040516,-500.0,0.00021917,3]
[348907740,1736871040525,-1348.98,0.00021917,3]
[348907741,1736871040535,-500.0,0.00021917,3]
[348907742,1736871040545,-500.0,0.00021917,3]
[348907743,1736871040555,-1517.43,0.00021917,3]
[348907744,1736871040565,-500.0,0.00021917,3]
[348907745,1736871040574,-500.0,0.00021917,3]
[348907746,1736871040585,-500.0,0.00021917,3]
[348907748,1736871040596,-500.0,0.00021917,3]
[348907750,1736871040605,-500.0,0.00021917,3]
[348907752,1736871040615,-501.36169514,0.00021917,3]
[348907754,1736871040626,-500.0,0.00021917,3]
[348907755,1736871040635,-500.0,0.00021917,3]
[348907756,1736871040644,-500.0,0.00021917,3]
[348907757,1736871040654,-500.0,0.00021917,3]
[348907758,1736871040663,-30201.28,0.00021917,3]
[348907760,1736871040673,-500.0,0.00021917,3]
[348907762,1736871040684,-500.0,0.00021917,3]
[348907764,1736871040695,-159.24557031,0.00021917,3]
[348907766,1736871040706,-500.0,0.00021917,3]
[348907768,1736871040715,-500.0,0.00021917,3]
[348907770,1736871040726,-500.0,0.00021917,3]
[348907772,1736871040735,-500.0,0.00021917,3]
[348907774,1736871040744,-500.0,0.00021917,3]
[348907777,1736871040754,-221.49825535,0.00021917,3]
[348907779,1736871040763,-500.0,0.00021917,3]
[348907781,1736871040774,-500.0,0.00021917,3]
[348907783,1736871040785,-500.0,0.00021917,3]
[348907785,1736871040795,-1134.17,0.00021917,3]
[348907787,1736871040806,-500.0,0.00021917,3]
[348907789,1736871040816,-588.58,0.00021917,3]
[348907791,1736871040826,-883.47,0.00021917,3]
[348907793,1736871040835,-1000.0,0.00021917,7]
[348907795,1736871040844,-500.0,0.00021917,3]
[348907797,1736871040855,-500.0,0.00021917,3]
[348907799,1736871040864,-500.0,0.00021917,3]
[348907801,1736871040874,-500.0,0.00021917,3]
[348907803,1736871040884,-500.0,0.00021917,3]
[348907805,1736871040893,-503.15191264,0.00021917,3]
[348907807,1736871040903,-500.0,0.00021917,3]
[348907809,1736871040916,-500.0,0.00021917,3]
[348907811,1736871040926,-500.0,0.00021917,3]
[348907813,1736871040936,-500.0,0.00021917,3]
[348907816,1736871040948,-592.82,0.00021917,3]
[348907818,1736871040958,-500.0,0.00021917,3]
[348907820,1736871040967,-500.0,0.00021917,3]
[348907822,1736871040977,-500.0,0.00021917,3]
[348907824,1736871040987,-500.0,0.00021917,3]
[348907826,1736871040999,-875.17847744,0.00021943,2]
[348907828,1736871041010,-500.0,0.00021973,2]
[348907830,1736871041022,-503.94948719,0.00021973,2]
[348907848,1736871041183,-501.04618209,0.00021973,2]
[348907850,1736871041195,-404.4149031,0.00021973,2]
[348907852,1736871041206,-500.40926139,0.00021973,2]
[348907854,1736871041216,-500.0,0.00021973,2]
[348907856,1736871041226,-312.30683443,0.00021973,2]
[348907858,1736871041235,-379.02318724,0.00021973,2]
[348907860,1736871041245,-500.0,0.00021973,2]
[348907862,1736871041254,-501.97044791,0.00021973,2]
[348907864,1736871041263,-500.0,0.00021973,2]
[348907866,1736871041273,-500.0,0.00021973,2]
[348907868,1736871041283,-416.26360359,0.00021973,2]
[348907870,1736871041292,-230.02301145,0.00021973,2]
[348907872,1736871041301,-243.7682603,0.00021973,2]
[348907874,1736871041311,-501.61105771,0.00021973,2]
[348907876,1736871041320,-160.35934002,0.00021973,2]
[348907878,1736871041329,-500.0,0.00021973,2]
[348907880,1736871041338,-500.0,0.00021973,2]
[348907882,1736871041347,-218.47720481,0.00021973,2]
[348907884,1736871041357,-257.24498406,0.00021973,2]
[348907886,1736871041367,-367.75894762,0.00021973,2]
[348907888,1736871041376,-13744.63,0.00022,2]
[348907890,1736871041386,-6493.32,0.00022,14]
[348907892,1736871041396,-2769.69,0.00022,14]
[348907893,1736871041406,-201661.01,0.00022,10]
[348907894,1736871041415,-500.0,0.00022054,2]
[348907896,1736871041425,-500.0,0.00022054,3]
[348907898,1736871041434,-500.0,0.00022054,3]
[348907900,1736871041446,-469.67705036,0.00022054,3]
[348907902,1736871041456,-500.0,0.00022054,3]
[348907904,1736871041465,-500.0,0.00022054,3]
[348907906,1736871041475,-500.0,0.00022054,3]
[348907908,1736871041485,-257.32944359,0.00022054,3]
[348907910,1736871041494,-500.0,0.00022054,3]
[348907913,1736871041514,-500.0,0.00022054,3]
[348907915,1736871041525,-500.0,0.00022054,3]
[348907917,1736871041535,-500.0,0.00022054,3]
[348907919,1736871041545,-500.0,0.00022054,3]
[348907921,1736871041555,-500.0,0.00022054,3]
[348907922,1736871041564,-500.0,0.00022054,3]
[348907924,1736871041575,-435.13188991,0.00022054,3]
[348907926,1736871041585,-500.0,0.00022054,3]
[348907928,1736871041594,-500.0,0.00022054,3]
[348907930,1736871041605,-500.0,0.00022054,3]
[348907932,1736871041614,-500.0,0.00022054,3]
[348907934,1736871041624,-500.0,0.00022054,3]
[348907936,1736871041634,-500.0,0.00022054,3]
[348907938,1736871041643,-500.0,0.00022054,3]
[348907940,1736871041653,-500.0,0.00022054,3]
[348907942,1736871041663,-500.0,0.00022054,3]
[348907944,1736871041673,-500.0,0.00022054,3]
[348907946,1736871041683,-500.0,0.00022054,3]
[348907948,1736871041692,-500.0,0.00022054,3]
[348907950,1736871041705,-500.0,0.00022054,3]
[348907952,1736871041715,-500.0,0.00022054,3]
[348907954,1736871041724,-500.0,0.00022054,3]
[348907956,1736871041734,-606.04,0.00022054,3]
[348907958,1736871041743,-500.0,0.00022054,3]
[348907960,1736871041753,-500.0,0.00022054,3]
[348907962,1736871041762,-500.0,0.00022054,3]
[348907964,1736871041772,-2266.02,0.00022054,3]
[348907965,1736871041782,-500.0,0.00022054,3]
[348907966,1736871041791,-211.90923827,0.00022054,3]
[348907967,1736871041801,-208.93,0.00022054,3]
[348907968,1736871041810,-328.08060469,0.00022054,3]
[348907969,1736871041826,-171.91939531,0.00022054,3]
[348907970,1736871041836,-500.0,0.00022054,3]
[348907971,1736871041846,-500.0,0.00022054,3]
[348907972,1736871041855,-1997.38098155,0.00022054,3]
[348907973,1736871041903,-280.44625145,0.00022054,3]
[348907974,1736871041915,-377.442767,0.00022054,3]
[348907975,1736871041928,-500.0,0.00022054,3]
[348907976,1736871041938,-282.8431799,0.00022054,3]
[348907977,1736871041949,-500.0,0.00022054,3]
[348907978,1736871041959,-500.0,0.00022054,3]
[348907979,1736871041968,-500.0,0.00022054,3]
[348907980,1736871041978,-500.0,0.00022054,3]
[348907981,1736871041987,-500.0,0.00022054,3]
[348907982,1736871041996,-500.0,0.00022054,3]
[348907984,1736871042008,-500.0,0.00022054,3]
[348907985,1736871042017,-500.0,0.00022054,3]
[348907987,1736871042027,-852.3,0.00022054,3]
[348907989,1736871042037,-1476.27,0.00022054,3]
[348907991,1736871042046,-500.0,0.00022054,3]
[348907993,1736871042056,-500.0,0.00022054,3]
[348907995,1736871042066,-757.95,0.00022054,2]
[348907998,1736871042077,-500.0,0.00022054,3]
[348908000,1736871042087,-500.0,0.00022054,3]
[348908002,1736871042097,-500.0,0.00022054,3]
[348908004,1736871042107,-500.0,0.00022054,3]
[348908006,1736871042116,-500.0,0.00022054,3]
[348908008,1736871042125,-500.0,0.00022054,3]
[348908010,1736871042135,-607.67,0.00022054,3]
[348908011,1736871042144,-502.2,0.00022054,3]
[348908014,1736871042154,-6919.39873351,0.00022054,3]
[348908016,1736871042167,-4344.72126649,0.00022054,3]
[348908018,1736871042178,-1970.02441214,0.00022054,2]
[348908020,1736871042190,-4282.22558786,0.00022054,2]
[348908022,1736871042202,-500.0,0.00022054,3]
[348908024,1736871042212,-757.72,0.00022054,3]
[348908026,1736871042223,-530.8,0.00022054,3]
[348908028,1736871042233,-500.0,0.00022054,3]
[348908030,1736871042243,-500.0,0.00022054,3]
[348908032,1736871042253,-1348.98,0.00022054,3]
[348908034,1736871042263,-500.0,0.00022054,3]
[348908037,1736871042273,-500.0,0.00022054,3]
[348908039,1736871042283,-1517.43,0.00022054,3]
[348908041,1736871042292,-500.0,0.00022054,3]
[348908043,1736871042302,-30201.28,0.00022054,3]
[348908045,1736871042312,-500.0,0.00022054,3]
[348908047,1736871042322,-500.0,0.00022054,3]
[348908049,1736871042331,-500.0,0.00022054,3]
[348908051,1736871042341,-500.0,0.00022054,3]
[348908053,1736871042351,-338.16988557,0.00022054,3]
[348908055,1736871042361,-500.0,0.00022054,3]
[348908057,1736871042370,-500.0,0.00022054,3]
[348908059,1736871042379,-500.0,0.00022054,3]
[348908061,1736871042389,-1134.17,0.00022054,3]
[348908063,1736871042399,-500.0,0.00022054,3]
[348908065,1736871042409,-1000.0,0.00022054,7]